fUSD/lending_fUSD_20260402
["ID","MTS","AMOUNT","RATE_DAILY","PERIOD"]
[419309206,1775140246968,-1000.0,0.00017521,2]
[419309207,1775140246977,-2000.0,0.00017616,2]
[419309208,1775140246987,-2000.0,0.00017616,2]
[419309209,1775140246997,-300.0,0.0001768,2]
[419309210,1775140247007,-300.0,0.0001768,2]
[419309211,1775140247017,-300.0,0.0001768,2]
[419309212,1775140247027,-300.0,0.0001768,2]
[419309213,1775140247036,-300.0,0.0001768,2]
[419309214,1775140247046,-300.0,0.0001768,2]
[419309215,1775140247058,-300.0,0.0001768,2]
[419309216,1775140247069,-300.0,0.0001768,2]
[419309217,1775140247079,-788.48161375,0.000177,2]
[419309218,1775140247088,-500.0,0.00017727,2]
[419309219,1775140247099,-534.64,0.00017727,2]
[419309220,1775140247110,-2395.28293795,0.00017732,2]
[419309221,1775140247119,-17015.45393048,0.00017841,2]
[419309222,1775140247129,-1009.63544699,0.0001786,2]
[419309223,1775140247139,-1231.88971784,0.0001789,2]
[419309224,1775140247151,-1079.47457837,0.0001789,2]
[419309225,1775140247160,-1115.60593933,0.0001789,2]
[419309226,1775140247170,-234.0845,0.000179,17]
[419309227,1775140247182,-150.0,0.00017968,2]
[419309228,1775140247193,-500.0,0.00017989,2]
[419309229,1775140247205,-20000.0,0.0001799,2]
[419309230,1775140247215,-500.0,0.00017999,2]
[419309231,1775140247226,-300.0,0.00017999,2]
[419309232,1775140247237,-300.0,0.00017999,2]
[419309233,1775140247248,-300.0,0.00017999,2]
[419309234,1775140247258,-300.0,0.00017999,2]
[419309235,1775140247269,-300.0,0.00017999,2]
[419309236,1775140247279,-300.0,0.00017999,2]
[419309237,1775140247289,-300.0,0.00017999,2]
[419309238,1775140247299,-304.23564359,0.00017999,2]
[419309239,1775140247309,-110255.88843134,0.00018,2]
[419309240,1775140247320,-1200.60984931,0.00018,2]
[419309241,1775140247330,-309.53053572,0.00018,2]
[419309242,1775140247341,-1791.94405118,0.000181,2]
[419309243,1775140247351,-2500.0,0.00018164,2]
[419309244,1775140247361,-1304.37006543,0.00018164,2]
[419309245,1775140247370,-192.72,0.00018187,2]
[419309246,1775140247380,-250.0,0.000182,2]
[419309247,1775140247390,-156.32,0.00018231,2]
[419309248,1775140247399,-529.27867338,0.00018276,2]
[419309249,1775140247409,-965.16338764,0.00018349,2]
[419309250,1775140247418,-300.0,0.00018355,2]
[419309251,1775140247428,-300.0,0.00018355,2]
[419309252,1775140247438,-300.0,0.00018355,2]
[419309253,1775140247448,-300.0,0.00018355,2]
[419309254,1775140247458,-300.0,0.00018355,2]
[419309255,1775140247467,-300.0,0.00018355,2]
[419309256,1775140247477,-300.0,0.00018355,2]
[419309257,1775140247487,-53176.41597693,0.00018356,2]
[419309258,1775140247510,-885.89728057,0.00018356,2]
[419309271,1775140250827,-500.0,0.00013845,2]
[419309272,1775140250838,-514.82665075,0.00013845,2]
[419309273,1775140250849,-500.0,0.00013846,2]
[419309274,1775140250858,-95.04234925,0.00013846,2]
[419309275,1775140250878,-404.95765075,0.00013846,2]
[419309276,1775140250887,-127.6240969,0.00013846,2]
[419309277,1775140250899,-370.27145567,0.00013846,2]
[419309278,1775140250926,-2.10444743,0.00013846,2]
[419309279,1775140250936,-500.0,0.00013846,2]
[419309280,1775140250946,-500.0,0.00013846,2]
[419309281,1775140250956,-500.0,0.00013846,2]
[419309282,1775140250968,-500.0,0.00015967,2]
[419309283,1775140250978,-500.0,0.00016972,2]
[419309284,1775140250988,-246.04005081,0.00016999,2]
[419309285,1775140250998,-151.0,0.000177,2]
[419309286,1775140251008,-287.38051999,0.00018356,2]
[419309287,1775140251018,-800.53498177,0.00018356,2]
[419309537,1775140958714,-442.72,0.00011507,2]
[419309538,1775140958739,-557.28,0.00013174,2]
[419309539,1775140960085,-1000.0,0.00013174,2]
[419309540,1775140961144,-42.72,0.00013174,2]
[419309541,1775140961166,-655.0,0.000135,2]
[419309542,1775140961188,-302.28,0.00013597,2]
[419309543,1775140963049,-897.72,0.00013597,2]
[419309544,1775140963075,-102.28,0.00013597,2]
[419309545,1775140964151,-197.72,0.00013597,2]
[419309546,1775140964175,-300.0,0.00013597,2]
[419309547,1775140964509,-300.0,0.00013597,2]
[419309548,1775140964532,-202.28,0.00013598,2]
[419309549,1775140965144,-1000.0,0.00013598,2]
[419309550,1775140966425,-1000.0,0.00013598,2]
[419309551,1775140967398,-1000.0,0.00013598,2]
[419309552,1775140968421,-269.12511961,0.00013598,2]
[419309553,1775140968443,-730.87488039,0.00013598,2]
[419309554,1775140969410,-604.58011961,0.00013598,2]
[419309555,1775140969432,-395.41988039,0.00013598,2]
[419309556,1775140970447,-1000.0,0.00013598,2]
[419309557,1775140971365,-1000.0,0.00013598,2]
[419309558,1775140972331,-1000.0,0.00013598,2]
[419309559,1775140973326,-1000.0,0.00013598,2]
[419309560,1775140974307,-550.0,0.000135,2]
[419309561,1775140974329,-450.0,0.00013598,2]
[419309562,1775140975400,-1000.0,0.00013598,2]
[419309563,1775140976441,-1000.0,0.00013598,2]
[419309564,1775140977372,-1000.0,0.00013598,2]
[419309565,1775140978309,-1000.0,0.00013598,2]
[419309566,1775140979266,-1000.0,0.00013598,2]
[419309567,1775141019314,-1000.0,0.00013563,2]
[419309568,1775141020422,-660.9685,0.00013563,2]
[419309569,1775141020445,-339.0315,0.00013598,2]
[419309570,1775141021420,-1000.0,0.00013598,2]
[419309571,1775141022378,-1000.0,0.00013598,2]
[419309572,1775141024127,-1000.0,0.00013598,2]
[419309573,1775141025135,-1000.0,0.00013598,2]
[419309574,1775141026192,-1000.0,0.00013598,2]
[419309575,1775141027362,-1000.0,0.00013598,2]
[419309576,1775141028501,-1000.0,0.00013598,2]
[419309577,1775141029511,-1000.0,0.00013598,2]
[419309594,1775141185424,-150.0,0.00012452,2]
[419309595,1775141185447,-150.0,0.00012452,2]
[419309596,1775141185471,-150.0,0.00012452,2]
[419309597,1775141185494,-245.82237456,0.00012452,2]
[419309598,1775141185518,-150.0,0.00012452,2]
[419309599,1775141185541,-150.0,0.00012452,2]
[419309600,1775141185564,-150.0,0.00012452,2]
[419309601,1775141185586,-150.0,0.00012452,2]
[419309602,1775141185608,-150.0,0.00012452,2]
[419309603,1775141185630,-150.0,0.00012452,2]
[419309604,1775141185653,-150.0,0.00012452,2]
[419309605,1775141185675,-54.17762544,0.00012452,2]
[419309606,1775141426264,175.70826022,0.000165,120]
[419309620,1775141432398,-150.0,0.00012393,2]
[419309621,1775141432408,-150.0,0.00012393,2]
[419309622,1775141432418,-150.0,0.00012393,2]
[419309623,1775141432428,-150.0,0.00012393,2]
[419309624,1775141432443,-150.0,0.00012393,2]
[419309625,1775141432453,-95.82237456,0.00012452,2]
[419309626,1775141432462,-150.0,0.00012452,2]
[419309627,1775141432471,-150.0,0.00012493,2]
[419309628,1775141432481,-150.0,0.00012494,2]
[419309629,1775141432490,-150.0,0.00012494,2]
[419309630,1775141432500,-150.0,0.00012497,2]
[419309631,1775141432509,-150.0,0.00012515,2]
[419309632,1775141432519,-150.0,0.00012521,2]
[419309633,1775141432529,-150.0,0.00012533,2]
[419309634,1775141432538,-150.0,0.00012536,2]
[419309635,1775141432548,-150.0,0.00012536,2]
[419309636,1775141432557,-150.0,0.00012541,2]
[419309637,1775141432567,-150.0,0.00012558,2]
[419309638,1775141432576,-150.0,0.00012574,2]
[419309639,1775141432586,-1200.0,0.00012577,2]
[419309640,1775141432595,-150.0,0.00012578,2]
[419309641,1775141432604,-150.0,0.00012578,2]
[419309642,1775141432614,-150.0,0.00012578,2]
[419309643,1775141432623,-150.0,0.00012578,2]
[419309644,1775141432635,-150.0,0.00012586,2]
[419309645,1775141432644,-150.0,0.0001259,2]
[419309646,1775141432654,-150.0,0.00012615,2]
[419309647,1775141432663,-300.0,0.00012619,2]
[419309648,1775141432672,-150.0,0.0001262,2]
[419309649,1775141432682,-150.0,0.0001262,2]
[419309650,1775141432692,-150.0,0.00012631,2]
[419309651,1775141432701,-150.0,0.00012641,2]
[419309652,1775141432710,-150.0,0.00012656,2]
[419309654,1775141432719,-150.0,0.0001266,2]
[419309656,1775141432728,-150.0,0.00012662,2]
[419309658,1775141432738,-150.0,0.00012662,2]
[419309660,1775141432747,-150.0,0.00012665,2]
[419309662,1775141432756,-150.0,0.00012675,2]
[419309664,1775141432765,-150.0,0.00012683,2]
[419309665,1775141432775,-150.0,0.00012683,2]
[419309666,1775141432784,-150.0,0.00012696,2]
[419309667,1775141432794,-150.0,0.00012704,2]
[419309668,1775141432804,-150.0,0.00012704,2]
[419309669,1775141432814,-150.0,0.00012704,2]
[419309670,1775141432824,-150.0,0.00012704,2]
[419309672,1775141432834,-150.0,0.0001272,2]
[419309674,1775141432843,-150.0,0.00012729,2]
[419309675,1775141432852,-150.0,0.00012737,2]
[419309676,1775141432862,-150.0,0.00012746,2]
[419309677,1775141432873,-150.0,0.00012746,2]
[419309678,1775141432883,-503.9335937,0.00012764,2]
[419309680,1775141432893,-150.0,0.00012764,2]
[419309682,1775141432901,-150.0,0.00012767,2]
[419309684,1775141432910,-150.0,0.00012771,2]
[419309685,1775141432920,-150.0,0.00012778,2]
[419309686,1775141432929,-150.0,0.00012787,2]
[419309687,1775141432938,-150.0,0.00012787,2]
[419309688,1775141432949,-150.0,0.00012798,2]
[419309689,1775141432958,-150.0,0.00012809,2]
[419309690,1775141432967,-150.0,0.00012818,2]
[419309691,1775141432977,-150.0,0.00012829,2]
[419309692,1775141432986,-150.0,0.00012829,2]
[419309693,1775141432996,-150.0,0.00012829,2]
[419309694,1775141433005,-150.0,0.00012829,2]
[419309695,1775141433015,-150.0,0.00012854,2]
[419309696,1775141433024,-150.0,0.00012859,2]
[419309697,1775141433034,-150.0,0.00012867,2]
[419309698,1775141433043,-150.0,0.00012871,2]
[419309699,1775141433054,-150.0,0.00012871,2]
[419309700,1775141433064,-150.0,0.00012878,2]
[419309701,1775141433074,-150.0,0.00012892,2]
[419309702,1775141433084,-150.0,0.00012898,2]
[419309703,1775141433093,-150.0,0.000129,2]
[419309704,1775141433104,-150.0,0.00012913,2]
[419309705,1775141433115,-150.0,0.00012913,2]
[419309706,1775141433126,-150.0,0.00012913,2]
[419309707,1775141433137,-150.0,0.00012913,2]
[419309708,1775141433147,-150.0,0.00012936,2]
[419309709,1775141433156,-150.0,0.0001294,2]
[419309710,1775141433167,-150.0,0.00012943,2]
[419309711,1775141433177,-150.0,0.00012955,2]
[419309712,1775141433187,-150.0,0.00012955,2]
[419309713,1775141433196,-150.0,0.00012955,2]
[419309714,1775141433206,-150.0,0.00012955,2]
[419309715,1775141433216,-150.0,0.00012981,2]
[419309716,1775141433226,-150.0,0.00012984,2]
[419309717,1775141433235,-150.0,0.00012988,2]
[419309718,1775141433245,-150.0,0.00012997,2]
[419309719,1775141433254,-150.0,0.00012997,2]
[419309720,1775141433264,-150.0,0.00013005,2]
[419309721,1775141433274,-173.6,0.00013018,2]
[419309722,1775141433284,-150.0,0.00013018,2]
[419309723,1775141433294,-150.0,0.00013022,2]
[419309724,1775141433303,-150.0,0.00013032,2]
[419309725,1775141433313,-150.0,0.00013039,2]
[419309726,1775141433323,-150.0,0.00013039,2]
[419309727,1775141433333,-150.0,0.00013062,2]
[419309728,1775141433343,-150.0,0.00013075,2]
[419309729,1775141433353,-150.0,0.00013077,2]
[419309730,1775141433363,-150.0,0.00013081,2]
[419309731,1775141433374,-150.0,0.00013081,2]
[419309732,1775141433386,-150.0,0.00013081,2]
[419309733,1775141433396,-150.0,0.00013081,2]
[419309734,1775141433405,-150.0,0.00013091,2]
[419309735,1775141433415,-150.0,0.00013103,2]
[419309736,1775141433424,-150.0,0.00013122,2]
[419309737,1775141433434,-150.0,0.00013123,2]
[419309738,1775141433443,-150.0,0.00013123,2]
[419309739,1775141433453,-150.0,0.00013144,2]
[419309740,1775141433462,-150.0,0.00013144,2]
[419309741,1775141433471,-150.0,0.00013144,2]
[419309742,1775141433480,-150.0,0.00013144,2]
[419309743,1775141433491,-66.96462455,0.00013165,2]
[419309744,1775141433518,-83.03537545,0.00013165,2]
[419309745,1775141433528,-150.0,0.00013165,2]
[419309746,1775141433538,-150.0,0.00013166,2]
[419309747,1775141433548,-659.37456195,0.00013182,2]
[419309748,1775141433558,-150.0,0.00013185,2]
[419309749,1775141433567,-62.98040428,0.00013197,2]
[419309750,1775141433580,-87.01959572,0.00013197,2]
[419309751,1775141433590,-150.0,0.00013207,2]
[419309752,1775141433600,-150.0,0.00013207,2]
[419309753,1775141433609,-150.0,0.00013207,2]
[419309754,1775141433619,-150.0,0.00013207,2]
[419309755,1775141433630,-150.0,0.00013211,2]
[419309756,1775141433640,-150.0,0.00013213,2]
[419309757,1775141433650,-150.0,0.00013225,2]
[419309758,1775141433660,-150.0,0.00013249,2]
[419309759,1775141433669,-150.0,0.00013249,2]
[419309760,1775141433679,-150.0,0.00013255,2]
[419309761,1775141433689,-150.0,0.00013266,2]
[419309762,1775141433698,-150.0,0.0001327,2]
[419309763,1775141433707,-150.0,0.00013282,2]
[419309764,1775141433716,-150.0,0.00013291,2]
[419309765,1775141433725,-150.0,0.00013291,2]
[419309766,1775141433735,-150.0,0.000133,2]
[419309767,1775141433744,-150.0,0.00013303,2]
[419309768,1775141433753,-150.0,0.00013307,2]
[419309769,1775141433762,-150.0,0.00013333,2]
[419309770,1775141433771,-150.0,0.00013333,2]
[419309771,1775141433781,-150.0,0.00013333,2]
[419309772,1775141433790,-150.0,0.00013333,2]
[419309773,1775141433800,-150.0,0.00013345,2]
[419309774,1775141433809,-150.0,0.00013347,2]
[419309775,1775141433819,-150.0,0.00013351,2]
[419309776,1775141433829,-150.0,0.00013374,2]
[419309777,1775141433838,-150.0,0.00013374,2]
[419309778,1775141433847,-150.0,0.00013374,2]
[419309779,1775141433856,-150.0,0.00013374,2]
[419309780,1775141433866,-500.0,0.00013377,2]
[419309781,1775141433875,-150.0,0.00013388,2]
[419309782,1775141433886,-150.0,0.00013389,2]
[419309783,1775141433896,-150.0,0.00013395,2]
[419309784,1775141433905,-150.0,0.0001341,2]
[419309785,1775141433915,-150.0,0.00013416,2]
[419309786,1775141433924,-150.0,0.00013416,2]
[419309787,1775141433934,-150.0,0.00013421,2]
[419309788,1775141433943,-150.0,0.00013429,2]
[419309789,1775141433956,-150.0,0.00013434,2]
[419309790,1775141433965,-962.3773,0.00013451,2]
[419309791,1775141433974,-150.0,0.00013458,2]
[419309792,1775141433983,-150.0,0.00013458,2]
[419309793,1775141433992,-150.0,0.00013458,2]
[419309794,1775141434002,-150.0,0.00013458,2]
[419309795,1775141434011,-150.0,0.00013469,2]
[419309796,1775141434020,-150.0,0.00013479,2]
[419309797,1775141434029,-150.0,0.0001349,2]
[419309798,1775141434038,-37692.66442889,0.00013498,2]
[419309799,1775141434050,-8908.1124697,0.00013498,2]
[419309800,1775141434088,-934.45208279,0.00013498,2]
[419309801,1775141434099,-722.84771587,0.00013498,2]
[419309802,1775141434111,-1363.17503185,0.00013498,2]
[419309803,1775141434135,-367.24616322,0.00013498,2]
[419309808,1775141438465,-667.96197469,0.00013498,2]
[419309809,1775141438509,-3259.60878976,0.00013498,2]
[419309823,1775141445440,-10440.67097094,0.00013498,2]
[419309824,1775141445495,-11775.92221652,0.00013498,2]
[419309825,1775141445506,-352.4624996,0.00013498,2]
[419309826,1775141445716,-10384.5,0.00013498,2]
[419309827,1775141445761,-4844.95771042,0.00013498,2]
[419309828,1775141445975,-1341.63933997,0.00013498,2]
[419309840,1775141448488,-1365.997893,0.00013498,2]
[419309842,1775141448541,-36566.19981278,0.00013498,2]
[419309843,1775141448551,-500.0,0.00013499,2]
[419309844,1775141448560,-500.0,0.00013499,2]
[419309845,1775141448569,-312.38934517,0.00013499,2]
[419309847,1775141448579,-656.0,0.000135,2]
[419309849,1775141448588,-150.0,0.000135,2]
[419309851,1775141448598,-150.0,0.000135,2]
[419309852,1775141448608,-150.0,0.0001351,2]
[419309853,1775141448618,-150.0,0.00013516,2]
[419309854,1775141448627,-150.0,0.00013521,2]
[419309855,1775141448636,-150.0,0.00013523,2]
[419309856,1775141448646,-150.0,0.00013542,2]
[419309857,1775141448656,-150.0,0.00013542,2]
[419309858,1775141448666,-150.0,0.00013551,2]
[419309859,1775141448677,-150.0,0.00013559,2]
[419309860,1775141448687,-2147.5268,0.00013563,2]
[419309861,1775141448696,-2732.6758,0.00013563,2]
[419309862,1775141448706,-150.0,0.00013568,2]
[419309863,1775141448715,-32178.05066968,0.00013579,2]
[419309864,1775141448725,-150.0,0.00013584,2]
[419309865,1775141448735,-150.0,0.00013584,2]
[419309866,1775141448744,-150.0,0.00013584,2]
[419309867,1775141448754,-150.0,0.00013584,2]
[419309868,1775141448763,-150.0,0.00013591,2]
[419309869,1775141448772,-879.65842586,0.00013597,2]
[419309870,1775141448782,-150.0,0.00013605,2]
[419309871,1775141448791,-150.0,0.00013612,2]
[419309872,1775141448800,-150.0,0.00013623,2]
[419309873,1775141448810,-150.0,0.00013626,2]
[419309874,1775141448819,-150.0,0.00013626,2]
[419309875,1775141448829,-150.0,0.00013628,2]
[419309876,1775141448838,-150.0,0.00013632,2]
[419309877,1775141448848,-150.0,0.00013647,2]
[419309878,1775141448858,-150.0,0.00013657,2]
[419309879,1775141448869,-201.1346108,0.00013663,2]
[419309880,1775141448879,-500.0,0.00013665,2]
[419309881,1775141448889,-500.0,0.00013665,2]
[419309882,1775141448899,-500.0,0.00013665,2]
[419309883,1775141448909,-500.0,0.00013665,2]
[419309884,1775141448919,-500.0,0.00013665,2]
[419309885,1775141448929,-500.0,0.00013665,2]
[419309886,1775141448939,-500.0,0.00013665,2]
[419309887,1775141448948,-493.51314513,0.00013665,2]
[419309889,1775141449110,-151.0,0.00013665,2]
[419309892,1775141449178,-151.0,0.00013665,2]
[419309893,1775141449187,-151.0,0.00013665,2]
[419309894,1775141449196,-151.0,0.00013665,2]
[419309895,1775141449205,-151.0,0.00013665,2]
[419309896,1775141449215,-151.0,0.00013665,2]
[419309897,1775141449224,-151.0,0.00013665,2]
[419309898,1775141449233,-171.10274431,0.00013665,2]
[419309899,1775141449243,-1050.9,0.00013665,2]
[419309900,1775141449253,-150.0,0.00013668,2]
[419309901,1775141449262,-150.0,0.00013668,2]
[419309902,1775141449272,-151.0,0.0001367,2]
[419309903,1775141449282,-500.0,0.00013673,2]
[419309904,1775141449291,-500.0,0.00013673,2]
[419309905,1775141449300,-500.0,0.00013673,2]
[419309906,1775141449309,-500.0,0.00013673,2]
[419309908,1775141449319,-500.0,0.00013673,2]
[419309911,1775141449328,-500.0,0.00013673,2]
[419309913,1775141449337,-500.0,0.00013673,2]
[419309916,1775141449347,-500.30491238,0.00013673,2]
[419309919,1775141449356,-150.0,0.00013673,2]
[419309922,1775141449366,-150.0,0.00013697,2]
[419309925,1775141449375,-500.0,0.00013698,2]
[419309928,1775141449384,-500.0,0.00013698,2]
[419309930,1775141449393,-500.0,0.00013698,2]
[419309933,1775141449402,-500.0,0.00013698,2]
[419309935,1775141449411,-500.0,0.00013698,2]
[419309937,1775141449420,-500.0,0.00013698,2]
[419309939,1775141449430,-500.0,0.00013698,2]
[419309941,1775141449438,-500.0,0.00013698,2]
[419309942,1775141449449,-500.0,0.00013698,2]
[419309944,1775141449459,-500.0,0.00013698,2]
[419309946,1775141449469,-500.0,0.00013698,2]
[419309948,1775141449478,-500.0,0.00013698,2]
[419309950,1775141449487,-500.0,0.00013698,2]
[419309952,1775141449496,-500.0,0.00013698,2]
[419309953,1775141449506,-500.0,0.00013698,2]
[419309954,1775141449516,-500.0,0.00013698,2]
[419309955,1775141449526,-500.0,0.00013698,2]
[419309956,1775141449535,-529.28576111,0.00013698,2]
[419309957,1775141449545,-500.0,0.00013698,2]
[419309958,1775141449555,-500.0,0.00013698,2]
[419309959,1775141449564,-500.0,0.00013698,2]
[419309960,1775141449574,-500.0,0.00013698,2]
[419309961,1775141449583,-500.0,0.00013698,2]
[419309962,1775141449592,-500.0,0.00013698,2]
[419309963,1775141449601,-508.65862639,0.00013698,2]
[419309964,1775141449610,-500.0,0.00013698,2]
[419309965,1775141449620,-500.0,0.00013698,2]
[419309966,1775141449629,-500.0,0.00013698,2]
[419309967,1775141449639,-500.0,0.00013698,2]
[419309968,1775141449650,-500.0,0.00013698,2]
[419309969,1775141449660,-500.0,0.00013698,2]
[419309970,1775141449670,-500.0,0.00013698,2]
[419309971,1775141449679,-262.05217327,0.00013698,2]
[419309972,1775141449689,-500.0,0.00013698,2]
[419309973,1775141449698,-500.0,0.00013698,2]
[419309974,1775141449708,-500.0,0.00013698,2]
[419309975,1775141449718,-500.0,0.00013698,2]
[419309976,1775141449728,-500.0,0.00013698,2]
[419309977,1775141449738,-500.0,0.00013698,2]
[419309978,1775141449747,-500.0,0.00013698,2]
[419309979,1775141449756,-500.0,0.00013698,2]
[419309980,1775141449765,-500.0,0.00013698,2]
[419309981,1775141449775,-500.0,0.00013698,2]
[419309982,1775141449784,-500.0,0.00013698,2]
[419309983,1775141449794,-500.0,0.00013698,2]
[419309984,1775141449803,-500.0,0.00013698,2]
[419309985,1775141449812,-500.0,0.00013698,2]
[419309986,1775141449822,-500.0,0.00013698,2]
[419309987,1775141449831,-500.0,0.00013698,2]
[419309988,1775141449840,-500.0,0.00013698,2]
[419309989,1775141449850,-500.0,0.00013698,2]
[419309990,1775141449859,-500.0,0.00013698,2]
[419309991,1775141449869,-499.99,0.00013699,2]
[419309992,1775141449879,-351.34,0.00013699,2]
[419309993,1775141449888,-2998.62,0.00013699,2]
[419309994,1775141449900,-150.99,0.00013699,2]
[419309995,1775141449910,-150.99,0.00013699,2]
[419309996,1775141449920,-9999.99,0.00013699,2]
[419309997,1775141449930,-9999.99,0.00013699,2]
[419309998,1775141449940,-9999.99,0.00013699,2]
[419309999,1775141449949,-22934.55,0.00013699,2]
[419310000,1775141449959,-299.99,0.00013699,2]
[419310001,1775141449968,-999.99,0.00013699,2]
[419310002,1775141449978,-4999.99,0.00013699,2]
[419310003,1775141449988,-150.0,0.00013699,2]
[419310004,1775141449998,-1209.08,0.00013699,2]
[419310005,1775141450007,-903.14,0.00013699,2]
[419310006,1775141450018,-150.0,0.000137,2]
[419310007,1775141450028,-1400.0,0.000137,5]
[419310008,1775141450038,-435.79,0.000137,2]
[419310009,1775141450047,-435.79,0.000137,2]
[419310010,1775141450057,-435.79,0.000137,2]
[419310011,1775141450067,-435.79,0.000137,2]
[419310012,1775141450076,-435.79,0.000137,2]
[419310013,1775141450086,-150.0,0.00013702,2]
[419310014,1775141450096,-150.0,0.0001371,2]
[419310015,1775141450107,-150.0,0.0001371,2]
[419310016,1775141450116,-150.0,0.0001371,2]
[419310017,1775141450128,-150.0,0.0001371,2]
[419310018,1775141450137,-150.0,0.00013714,2]
[419310019,1775141450148,-150.0,0.00013729,2]
[419310020,1775141450158,-150.0,0.00013746,2]
[419310021,1775141450168,-1000.0,0.00013747,2]
[419310022,1775141450178,-150.0,0.00013752,2]
[419310023,1775141450188,-150.0,0.00013752,2]
[419310024,1775141450197,-150.0,0.00013754,2]
[419310025,1775141450206,-150.0,0.00013766,2]
[419310026,1775141450216,-150.0,0.00013773,2]
[419310027,1775141450226,-255.0,0.00013786,2]
[419310028,1775141450235,-150.0,0.00013791,2]
[419310029,1775141450246,-150.0,0.00013794,2]
[419310030,1775141450255,-150.0,0.00013794,2]
[419310031,1775141450264,-150.0,0.00013795,2]
[419310032,1775141450274,-2900.0,0.000138,5]
[419310033,1775141450284,-1680.0,0.00013835,2]
[419310034,1775141450293,-181.57731619,0.00013836,2]
[419310035,1775141450303,-166.82455666,0.00013836,2]
[419310036,1775141450314,-281.16474898,0.00013836,2]
[419310037,1775141450324,-150.0,0.00013836,2]
[419310038,1775141450333,-271.77999525,0.00013836,2]
[419310039,1775141450343,-150.45798405,0.00013836,2]
[419310040,1775141450353,-150.33671718,0.00013836,2]
[419310041,1775141450362,-259.76098773,0.00013836,2]
[419310042,1775141450372,-150.0,0.00013836,2]
[419310043,1775141450382,-194.85681719,0.00013836,2]
[419310044,1775141450391,-150.00000001,0.00013836,2]
[419310045,1775141450404,-252.57876589,0.00013836,2]
[419310046,1775141450413,-407.0,0.00013844,2]
[419310047,1775141450423,-500.0,0.00013845,2]
[419310048,1775141450434,-500.0,0.00013845,2]
[419310049,1775141450443,-500.0,0.00013846,2]
[419310050,1775141450452,-500.0,0.00013846,2]
[419310051,1775141450462,-500.0,0.00013846,2]
[419310052,1775141450471,-500.0,0.00013846,2]
[419310053,1775141450480,-500.0,0.00013846,2]
[419310054,1775141450490,-500.0,0.00013846,2]
[419310055,1775141450499,-500.0,0.00013846,2]
[419310056,1775141450510,-507.27121127,0.00013846,2]
[419310057,1775141450519,-500.0,0.00013846,2]
[419310058,1775141450529,-500.0,0.00013846,2]
[419310059,1775141450538,-316.76546514,0.00013846,2]
[419310060,1775141450548,-500.0,0.00013846,2]
[419310061,1775141450557,-500.0,0.00013846,2]
[419310062,1775141450567,-500.0,0.00013846,2]
[419310063,1775141450576,-500.0,0.00013846,2]
[419310064,1775141450585,-500.0,0.00013846,2]
[419310065,1775141450595,-500.0,0.00013846,2]
[419310066,1775141450603,-500.0,0.00013846,2]
[419310067,1775141450613,-500.0,0.00013846,2]